Workbook

Sheet Total
A1: Nom | B1: Total | G1: Dimention | H1: Meuble | I1: Cuve | J1: Reserve | K1: Decante
A2: Meuble | B2: =meuble!E25 -> 442.99 | G2: L | H2: 1600 | I2: 1600
A3: Cuve | B3: =Cuve!E25 -> 600 | G3: l | H3: 600 | I3: 600
A4: Tuyauterie | B4: =Tuyauterie!E25 -> 113.56 | G4: H | H4: 1000 | I4: 600
A5: Osmolateur | B5: =Osmolateur!E25 -> 12.64
A6: Décante | B6: =Décante!E25 -> 156.01
A7: Electricité | B7: =Electricité!E7 -> 83.36
A8: Eclairages | B8: =Eclairages!E16 -> 65.94
A9: ElectroAqua | B9: =electroAqua!E25 -> 799
A10: Osmoseur | B10: =Osmoseur!E7 -> 120.54
A11: Substrat + Pvs | B11: ='substrat + PVs'!E5 -> 309.88
A12: sels+eau | B12: ='Sels+eau'!E3 -> 24.9
C15: Prix redsea | D15: 2724
A16: Total | B16: =SUM(B2:B15) -> 2728.82 | C16: diff redsea | D16: =SUM(B2:B6) -> 1325.2
D17: =D15-D16 -> 1398.8

Sheet meuble
A1: Matériels | B1: Ref | C1: PU | D1: Nombre | E1: total | F1: Remarques | G1: Site | H1: Date D'achat
A2: Peinture | C2: 24.99 | D2: 1 | E2: =D2*C2 -> 24.99
A3: Contreplaqué marine | C3: 1250 | D3: 0 | E3: =D3*C3 -> 0 | G3: https://www.laboutiquedubois.com/panneau-contreplaque-marine-1037.html
A4: Contreplaqué | C4: 418 | D4: 1 | E4: =D4*C4 -> 418
D25: Total | E25: =SUM(E2:E24) -> 442.99

Sheet Cuve
A1: Matériels | B1: Ref | C1: PU | D1: Nombre | E1: total | F1: Remarques | G1: Site | H1: Date D'achat
C2: 600 | D2: 1 | E2: =C2*D2 -> 600 | H2: Fait
H3: Fait
H4: Fait
H5: Fait
H6: Fait
H10: Fait
H11: Fait
H12: Fait
H13: Fait
H14: Fait
H15: Fait
H16: Fait
H17: Fait
H18: Fait
H19: Fait
D25: total | E25: =SUM(E2:E24) -> 600

Sheet Tuyauterie
A1: Matériels | B1: Ref | C1: PU | D1: Nombre | E1: total | F1: Remarques | G1: Site | H1: Date D'achat
A2: Joint uniseal® 32mm | C2: 3.5 | D2: 2 | E2: =D2*C2 -> 7 | G2: Neo3plus | H2: Fait
A3: Coude 90 32mm | C3: 1.9 | D3: 2 | E3: =D3*C3 -> 3.8 | G3: aquastore | H3: Fait
A4: Vanne 32mm | C4: 12.9 | D4: 2 | E4: =D4*C4 -> 25.8 | G4: aquastore | H4: Fait
A5: Tube 32mm | C5: 3.9 | D5: 2 | E5: =D5*C5 -> 7.8 | G5: aquastore | H5: Fait
A6: Embout cannelé 32mm | C6: 2.9 | D6: 4 | E6: =D6*C6 -> 11.6 | G6: aquastore | H6: Fait
A7: Tuyau souple 32mm | C7: 2.45 | D7: 5 | E7: =D7*C7 -> 12.25 | G7: garda-aquatic | H7: Fait
A8: T 32mm | C8: 1.9 | D8: 2 | E8: =D8*C8 -> 3.8 | G8: aquastore | H8: Fait
A9: Bouchon 32mm | C9: 1.9 | D9: 4 | E9: =D9*C9 -> 7.6 | G9: aquastore | H9: Fait
A10: Joint uniseal® 20mm | C10: 2.75 | D10: 1 | E10: =D10*C10 -> 2.75 | G10: Neo3plus | H10: Fait
A11: Tuyau souple 20mm | C11: 1.4 | D11: 3 | E11: =D11*C11 -> 4.2 | G11: garda-aquatic | H11: Fait
A12: tube 20mm | C12: 2.9 | D12: 1 | E12: =D12*C12 -> 2.9 | G12: aquastore | H12: Fait
A13: Embout cannelé 20mm | C13: 1.9 | D13: 1 | E13: =D13*C13 -> 1.9 | G13: aquastore | H13: Fait
A14: Coude 90 20mm | C14: 1.7 | D14: 1 | E14: =D14*C14 -> 1.7 | G14: aquastore | H14: Fait
A15: Colle PVC | C15: 7.9 | D15: 1 | E15: =D15*C15 -> 7.9 | F15: Colle N-30 pour PVC - 250ml | G15: aquastore | H15: Fait
A16: Sac perlon | C16: 1.33 | D16: 2 | E16: =D16*C16 -> 2.66 | G16: Fabriqué | H16: Fait
A17: Peigne | C17: 9.9 | D17: 1 | E17: =D17*C17 -> 9.9 | G17: aquastore | H17: Fait
D25: Total | E25: =SUM(E2:E24) -> 113.56

Sheet Osmolateur
A1: Matériels | B1: Ref | C1: PU | D1: Nombre | E1: total | F1: Remarques | G1: Site | H1: Date D'achat
A2: Pompe Osmlolateur | B2: Mini Micro Submersible Pompe À Eau | C2: 5.44 | D2: 1 | E2: =D2*C2 -> 5.44 | G2: Aliexpress | H2: Fait
A3: Capteur niveau eau | C3: =7.2/5 -> 1.44 | D3: 5 | E3: =D3*C3 -> 7.2 | G3: Aliexpress | H3: Fait
D25: Total | E25: =SUM(E2:E24) -> 12.64

Sheet Décante
A1: Matériels | B1: Ref | C1: PU | D1: Nombre | E1: total | F1: Remarques | G1: Site | H1: Date D'achat
A2: Ecumeurs | B2: Curve A5 | C2: 122 | D2: 1 | E2: =D2*C2 -> 122 | F2: Mini 2X voulume du fabricant | G2: Aliexpress | H2: Fait
A3: pompes remontés | C3: 16.01 | D3: 1 | E3: =D3*C3 -> 16.01 | F3: 3 et 4 X volumes du bac par heure Soit 11L/min | G3: Aliexpress
A7: Décante | B7: fond tech | C7: verre normal bord brut | D7: 7.37 | E7: 1 | F7: =D7*E7 -> 7.37
B8: AV/AR tech | C8: verre normal bord brut | D8: 7.9 | E8: 2 | F8: =D8*E8 -> 15.8
B9: cotés tech | C9: verre normal bord brut | D9: 3.77 | E9: 2 | F9: =D9*E9 -> 7.54
B10: Lame | C10: verre normal bord brut | D10: 1.88 | E10: 4 | F10: =D10*E10 -> 7.52
B11: Colle | D11: 9.99 | E11: 2 | F11: =D11*E11 -> 19.98
B12: pistolet | D12: 7.5 | E12: 1 | F12: =D12*E12 -> 7.5
B13: foret 45mm | D13: 2.5 | E13: 1 | F13: =D13*E13 -> 2.5
B14: Peinture | D14: 8 | E14: 1 | F14: =D14*E14 -> 8
B15: Mousse | D15: 5.99 | E15: 3 | F15: =D15*E15 -> 17.97
B16: Bac reserve eau | D16: 3.9 | E16: 1 | F16: =D16*E16 -> 3.9
E25: =SUM(E2:E24) -> 156.01

Sheet Electricité
A1: Matériels | B1: Ref | C1: PU | D1: Nombre | E1: total | F1: Remarques | G1: Site | H1: Date D'achat
A2: Rail DIN | B2: 581538 | C2: 4.99 | D2: 4 | E2: =D2*C2 -> 19.96 | F2: nombre de module 15 prise + 2 dijoncteur + emplacement Ordinateur | G2: Magasin de bricolage | H2: Fait
A3: disjoncteur | B3: 948469 | C3: 6.95 | D3: 2 | E3: =D3*C3 -> 13.9 | G3: Magasin de bricolage | H3: Fait
A4: Prise electrique | B4: 1159821 | C4: 4.95 | D4: 10 | E4: =D4*C4 -> 49.5 | G4: Magasin de bricolage | H4: Fait
D7: Total | E7: =SUM(E2:E6) -> 83.36

Sheet Eclairages
A1: Matériels | B1: Ref | C1: PU | D1: Nombre | E1: total | F1: Remarques | G1: Site | H1: Date D'achat
A2: Leds | C2: 0.2 | D2: 17 | E2: =D2*C2 -> 3.4 | G2: Aliexpress | H2: Fait | I2: (manque led vert)
A3: Leds UV | C3: =4.4/10 -> 0.44 | D3: 4 | E3: =D3*C3 -> 1.76 | G3: Aliexpress | H3: Fait
A4: Regle aluminium | C4: 15 | D4: 1 | E4: =D4*C4 -> 15 | G4: Magasin de bricolage | H4: Fait
A5: Alimentation 12V | C5: 0 | D5: 1 | E5: =D5*C5 -> 0 | G5: Recupération | H5: Fait
A6: Carte Commande | C6: 4.99 | D6: 1 | E6: =D6*C6 -> 4.99 | G6: SeedStudio | H6: Fait
A7: Circuit par led | C7: 4.99 | D7: 1 | E7: =D7*C7 -> 4.99 | G7: SeedStudio | H7: Fait
A8: Pieds | D8: 2 | E8: =D8*C8 -> 0 | H8: Fait
A9: Ventilateur | C9: 0 | D9: 6 | E9: =D9*C9 -> 0 | G9: Recupération | H9: Fait
A10: Lentille | C10: 1.79 | D10: 20 | E10: =D10*C10 -> 35.8 | G10: Aliexpress | H10: Fait
A11: Vis M2 | D11: 80 | E11: =D11*C11 -> 0 | G11: Aliexpress | H11: Fait
A12: Vis M3 | D12: 80 | E12: =D12*C12 -> 0 | G12: Aliexpress | H12: Fait
A13: Vis ventilateur ?? | E13: =D13*C13 -> 0 | G13: Aliexpress | H13: Fait
A14: Vis montage ?? | E14: =D14*C14 -> 0 | G14: Aliexpress | H14: Fait
A15: Resistance | C15: 0.12 | D15: 17 | E15: =D15*C15 -> 2.04 | G15: Aliexpress | H15: Fait
D16: Total | E16: =SUM(E2:E10) -> 65.94

Sheet electroAqua
A1: Matériels | B1: Ref | C1: PU | D1: Nombre | E1: total | F1: Remarques | G1: Site | H1: Date D'achat
A2: Pompe de brassage | C2: 300 | D2: 1 | E2: =D2*C2 -> 300 | F2: 40X le volume => 7200 L
A3: Chauffage | C3: 40 | D3: 1 | E3: =D3*C3 -> 40
A4: Ecumeur | C4: 350 | D4: 1 | E4: =D4*C4 -> 350
A5: Pompe de remonté | C5: 109 | D5: 1 | E5: =D5*C5 -> 109
D25: Total | E25: =SUM(E2:E24) -> 799

Sheet Osmoseur
A1: Matériels | B1: Ref | C1: PU | D1: Nombre | E1: total | F1: Remarques | G1: Site | H1: Date D'achat
A2: Osmoseur | C2: 39.9 | D2: 1 | E2: =D2*C2 -> 39.9 | G2: aquastore | H2: Fait
A3: Pompe | C3: 65.99 | D3: 1 | E3: 57.53 | G3: Manomano | H3: Fait
A4: TDS metre | C4: 2.01 | D4: 1 | E4: =D4*C4 -> 2.01 | G4: Aliexpress | H4: Fait
A5: Robiné double | C5: 21.1 | D5: 1 | E5: =D5*C5 -> 21.1 | G5: Magasin de bricolage | H5: Fait
A6: Sortie pompe | C6: 12.46 | D6: 1 | E6: =D6*C6 -> 12.46 | G6: aquastore | H6: Fait
D7: Total | E7: =SUM(E2:E5) -> 120.54

Sheet substrat + PVs
A1: 50 | B1: Ref | C1: PU | D1: Nombre | E1: total | F1: Remarques | G1: Site | H1: Date D'achat
A2: Sable | B2: AQUA MEDIC Bali Sand 0,5-1,2mm - 10 kg | C2: 29.99 | D2: 2 | E2: =D2*C2 -> 59.98 | F2: 15Kg | G2: Aquastore | H2: Fait
A3: PV | C3: 15.9 | D3: 7 | E3: =D3*C3 -> 111.3 | F3: 7kg | G3: Marinehome | H3: Fait
A4: Reefrock | C4: 9.9 | D4: 14 | E4: =D4*C4 -> 138.6 | F4: 14kg | G4: Marinehome | H4: Fait
D5: Total | E5: =SUM(E2:E4) -> 309.88

Sheet Sels+eau
A1: Matériels | B1: Ref | C1: PU | D1: Nombre | E1: total | F1: Remarques | G1: Site | H1: Date D'achat
C2: =20.75*1.2 -> 24.9 | D2: 1 | E2: =D2*C2 -> 24.9 | F2: 35g/L => 1025 200L=> 7Kg | G2: Marine home | H2: Septembre
D3: Total | E3: =SUM(E2:E2) -> 24.9
